[Event "Titled Tuesday Blitz December 20 Late 2022"]
[White "Rustemov, Alexander"]
[Black "Goltsev, Dmitry"]
[WhiteFideId "4119002"]
[BlackFideId "24176710"]
[WhiteElo "2884"]
[BlackElo "2327"]
[Result "0-1"]
[Round "09"]
[TimeControl "180+1"]
[Date "2022.12.20"]
[WhiteClock "0:00:02"]
[BlackClock "0:00:48"]

1. d4 {[%clk 0:02:57]}  Nf6 {[%clk 0:03:00]} 2. c4 {[%clk 0:02:53]}  e6 {[%clk 0:02:56]} 3. Nf3 {[%clk 0:02:53]}  Bb4+ {[%clk 0:02:56]} 4. Bd2 {[%clk 0:02:53]}  Qe7 {[%clk 0:02:57]} 5. g3 {[%clk 0:02:53]}  b6 {[%clk 0:02:57]} 6. Bg2 {[%clk 0:02:53]}  Bb7 {[%clk 0:02:58]} 7. O-O {[%clk 0:02:54]}  O-O {[%clk 0:02:58]} 8. Bf4 {[%clk 0:02:54]}  Bd6 {[%clk 0:02:58]} 9. Bxd6 {[%clk 0:02:43]}  Qxd6 {[%clk 0:02:57]} 10. Nc3 {[%clk 0:02:43]}  Qe7 {[%clk 0:02:56]} 11. Qc2 {[%clk 0:02:40]}  d6 {[%clk 0:02:57]} 12. e4 {[%clk 0:02:39]}  Nbd7 {[%clk 0:02:56]} 13. Rfe1 {[%clk 0:02:39]}  e5 {[%clk 0:02:56]} 14. Rad1 {[%clk 0:02:38]}  a5 {[%clk 0:02:56]} 15. h3 {[%clk 0:02:38]}  c6 {[%clk 0:02:54]} 16. b3 {[%clk 0:02:35]}  Rac8 {[%clk 0:02:53]} 17. Qd2 {[%clk 0:02:33]}  Rfe8 {[%clk 0:02:53]} 18. Kh2 {[%clk 0:02:27]}  Nf8 {[%clk 0:02:47]} 19. Qe3 {[%clk 0:02:03]}  Ng6 {[%clk 0:02:44]} 20. dxe5 {[%clk 0:02:02]}  dxe5 {[%clk 0:02:43]} 21. Qxb6 {[%clk 0:02:01]}  Qb4 {[%clk 0:02:44]} 22. Qe3 {[%clk 0:01:49]}  Rcd8 {[%clk 0:02:42]} 23. Na4 {[%clk 0:01:44]}  Ba6 {[%clk 0:02:15]} 24. Nc5 {[%clk 0:01:41]}  Bc8 {[%clk 0:02:13]} 25. Rxd8 {[%clk 0:01:33]}  Rxd8 {[%clk 0:02:13]} 26. Nd3 {[%clk 0:01:33]}  Qa3 {[%clk 0:02:05]} 27. Ndxe5 {[%clk 0:01:30]}  Qxa2 {[%clk 0:02:02]} 28. Nxc6 {[%clk 0:01:25]}  Re8 {[%clk 0:02:01]} 29. e5 {[%clk 0:01:23]}  Nd7 {[%clk 0:02:00]} 30. Re2 {[%clk 0:01:17]}  Qa3 {[%clk 0:01:57]} 31. Qc3 {[%clk 0:01:14]}  a4 {[%clk 0:01:55]} 32. Rb2 {[%clk 0:00:54]}  Bb7 {[%clk 0:01:47]} 33. Nfd4 {[%clk 0:00:46]}  Ndxe5 {[%clk 0:01:34]} 34. Nxe5 {[%clk 0:00:38]}  Bxg2 {[%clk 0:01:34]} 35. Nxg6 {[%clk 0:00:37]}  Be4 {[%clk 0:01:33]} 36. Nf4 {[%clk 0:00:34]}  Qa1 {[%clk 0:01:32]} 37. f3 {[%clk 0:00:29]}  a3 {[%clk 0:01:27]} 38. Rc2 {[%clk 0:00:26]}  Qxc3 {[%clk 0:01:27]} 39. Rxc3 {[%clk 0:00:26]}  a2 {[%clk 0:01:27]} 40. Rc1 {[%clk 0:00:25]}  Bb1 {[%clk 0:01:26]} 41. Nc2 {[%clk 0:00:23]}  Bxc2 {[%clk 0:01:27]} 42. Ra1 {[%clk 0:00:23]}  Bxb3 {[%clk 0:01:27]} 43. c5 {[%clk 0:00:23]}  Rd8 {[%clk 0:01:21]} 44. g4 {[%clk 0:00:18]}  Rd2+ {[%clk 0:01:13]} 45. Kg3 {[%clk 0:00:19]}  g5 {[%clk 0:01:05]} 46. Nh5 {[%clk 0:00:18]}  Rd1 {[%clk 0:00:57]} 47. Nf6+ {[%clk 0:00:14]}  Kh8 {[%clk 0:00:55]} 48. Rxa2 {[%clk 0:00:07]}  Bxa2 {[%clk 0:00:55]} 49. Ne4 {[%clk 0:00:07]}  h6 {[%clk 0:00:52]} 50. h4 {[%clk 0:00:04]}  gxh4+ {[%clk 0:00:51]} 51. Kxh4 {[%clk 0:00:04]}  Rc1 {[%clk 0:00:50]} 52. Kg3 {[%clk 0:00:04]}  Bd5 {[%clk 0:00:51]} 53. Nf6 {[%clk 0:00:04]}  Rxc5 {[%clk 0:00:50]} 54. Kf4 {[%clk 0:00:04]}  Be6 {[%clk 0:00:50]} 55. Kg3 {[%clk 0:00:04]}  Kg7 {[%clk 0:00:50]} 56. Ne8+ {[%clk 0:00:03]}  Kg6 {[%clk 0:00:50]} 57. Nd6 {[%clk 0:00:03]}  Rc3 {[%clk 0:00:49]} 58. Ne4 {[%clk 0:00:03]}  Ra3 {[%clk 0:00:48]} 59. Kf4 {[%clk 0:00:03]}  Bd5 {[%clk 0:00:48]} 60. Nd2 {[%clk 0:00:02]}  Rd3 {[%clk 0:00:48]} 61. Ne4 {[%clk 0:00:02]}  f6 {[%clk 0:00:48]} 0-1


[Site "https://www.chess.com"]

[Event "Titled Tuesday Blitz December 20 Late 2022"]
[White "Sanchez, Robert"]
[Black "Clawitter, Craig"]
[WhiteFideId "2034360"]
[BlackFideId "2023105"]
[WhiteElo "2373"]
[BlackElo "2226"]
[Result "1-0"]
[Round "09"]
[TimeControl "180+1"]
[Date "2022.12.21"]
[WhiteClock "0:00:14"]
[BlackClock "0:00:04"]

1. e4 {[%clk 0:03:00]}  e6 {[%clk 0:02:58]} 2. d4 {[%clk 0:03:01]}  d5 {[%clk 0:02:59]} 3. Nc3 {[%clk 0:03:01]}  Bb4 {[%clk 0:02:58]} 4. e5 {[%clk 0:03:01]}  c5 {[%clk 0:02:59]} 5. Bd2 {[%clk 0:03:02]}  Nh6 {[%clk 0:02:58]} 6. Nf3 {[%clk 0:03:01]}  Nf5 {[%clk 0:02:56]} 7. dxc5 {[%clk 0:03:00]}  Nd7 {[%clk 0:02:49]} 8. Bd3 {[%clk 0:02:57]}  Nh4 {[%clk 0:02:49]} 9. O-O {[%clk 0:02:47]}  Nxf3+ {[%clk 0:02:34]} 10. Qxf3 {[%clk 0:02:46]}  Nxe5 {[%clk 0:02:25]} 11. Bb5+ {[%clk 0:02:34]}  Bd7 {[%clk 0:02:21]} 12. Qg3 {[%clk 0:02:25]}  Bxb5 {[%clk 0:02:08]} 13. Nxb5 {[%clk 0:02:24]}  Bxd2 {[%clk 0:01:54]} 14. Nd6+ {[%clk 0:02:24]}  Kf8 {[%clk 0:01:40]} 15. Qxe5 {[%clk 0:02:24]}  Qc7 {[%clk 0:01:27]} 16. Qd4 {[%clk 0:01:52]}  Bg5 {[%clk 0:01:16]} 17. c3 {[%clk 0:01:20]}  b6 {[%clk 0:00:54]} 18. b4 {[%clk 0:01:14]}  Bf6 {[%clk 0:00:51]} 19. Qe3 {[%clk 0:01:12]}  bxc5 {[%clk 0:00:46]} 20. bxc5 {[%clk 0:01:12]}  Be7 {[%clk 0:00:39]} 21. Qe5 {[%clk 0:01:00]}  Qxc5 {[%clk 0:00:32]} 22. Nb7 {[%clk 0:00:51]}  Qc8 {[%clk 0:00:14]} 23. Rab1 {[%clk 0:00:49]}  h5 {[%clk 0:00:09]} 24. Rfc1 {[%clk 0:00:46]}  Rh6 {[%clk 0:00:08]} 25. c4 {[%clk 0:00:46]}  dxc4 {[%clk 0:00:06]} 26. Na5 {[%clk 0:00:23]}  c3 {[%clk 0:00:06]} 27. Rxc3 {[%clk 0:00:22]}  Qd8 {[%clk 0:00:04]} 28. Rcb3 {[%clk 0:00:17]}  Rg6 {[%clk 0:00:03]} 29. Rb8 {[%clk 0:00:15]}  Bd6 {[%clk 0:00:04]} 30. Qxd6+ {[%clk 0:00:14]} 1-0


[Site "https://www.chess.com"]

[Event "Titled Tuesday Blitz December 20 Late 2022"]
[White "Sarana, Alexey"]
[Black "Ibarra Jerez, Jose Carlos"]
[WhiteFideId "24133795"]
[BlackFideId "2226332"]
[WhiteElo "2708"]
[BlackElo "2638"]
[Result "1-0"]
[Round "09"]
[TimeControl "180+1"]
[Date "2022.12.20"]
[WhiteClock "0:00:24"]
[BlackClock "0:00:07"]

1. d4 {[%clk 0:03:00]}  Nf6 {[%clk 0:02:59]} 2. c4 {[%clk 0:03:01]}  d6 {[%clk 0:02:59]} 3. Nc3 {[%clk 0:03:00]}  e5 {[%clk 0:02:59]} 4. Nf3 {[%clk 0:03:01]}  e4 {[%clk 0:02:59]} 5. Ng5 {[%clk 0:03:01]}  Qe7 {[%clk 0:02:59]} 6. Qc2 {[%clk 0:02:57]}  Bf5 {[%clk 0:02:59]} 7. f3 {[%clk 0:02:55]}  Nc6 {[%clk 0:02:59]} 8. fxe4 {[%clk 0:02:45]}  Bg6 {[%clk 0:02:57]} 9. d5 {[%clk 0:02:35]}  Nb8 {[%clk 0:02:49]} 10. e3 {[%clk 0:02:19]}  Nbd7 {[%clk 0:02:45]} 11. Bd3 {[%clk 0:01:45]}  Nc5 {[%clk 0:02:45]} 12. O-O {[%clk 0:01:45]}  h6 {[%clk 0:02:43]} 13. Nf3 {[%clk 0:01:44]}  Nfxe4 {[%clk 0:02:31]} 14. Nxe4 {[%clk 0:01:42]}  Nxd3 {[%clk 0:02:12]} 15. Qxd3 {[%clk 0:01:42]}  Qxe4 {[%clk 0:02:12]} 16. Qb3 {[%clk 0:01:41]}  O-O-O {[%clk 0:02:08]} 17. Bd2 {[%clk 0:01:37]}  Be7 {[%clk 0:02:02]} 18. Bc3 {[%clk 0:01:23]}  Bg5 {[%clk 0:01:41]} 19. Bd4 {[%clk 0:01:18]}  Rde8 {[%clk 0:01:31]} 20. Rae1 {[%clk 0:01:16]}  Qc2 {[%clk 0:01:15]} 21. Qxc2 {[%clk 0:01:00]}  Bxc2 {[%clk 0:01:15]} 22. Nxg5 {[%clk 0:01:01]}  hxg5 {[%clk 0:01:08]} 23. Rxf7 {[%clk 0:01:01]}  Rh4 {[%clk 0:01:06]} 24. Rc1 {[%clk 0:00:51]}  Be4 {[%clk 0:00:53]} 25. Rxg7 {[%clk 0:00:51]}  g4 {[%clk 0:00:38]} 26. Rf1 {[%clk 0:00:49]}  Rh7 {[%clk 0:00:32]} 27. Rxg4 {[%clk 0:00:47]}  Bd3 {[%clk 0:00:33]} 28. Rc1 {[%clk 0:00:47]}  Rf7 {[%clk 0:00:32]} 29. h4 {[%clk 0:00:41]}  Ref8 {[%clk 0:00:32]} 30. h5 {[%clk 0:00:38]}  Be2 {[%clk 0:00:29]} 31. Rh4 {[%clk 0:00:36]}  Rh7 {[%clk 0:00:26]} 32. h6 {[%clk 0:00:36]}  Rf5 {[%clk 0:00:18]} 33. e4 {[%clk 0:00:32]}  Rg5 {[%clk 0:00:16]} 34. Rc2 {[%clk 0:00:25]}  Bh5 {[%clk 0:00:12]} 35. Rf2 {[%clk 0:00:23]}  Bg6 {[%clk 0:00:07]} 36. Rf8+ {[%clk 0:00:23]}  Kd7 {[%clk 0:00:07]} 37. Bf6 {[%clk 0:00:24]} 1-0


[Site "https://www.chess.com"]

[Event "Titled Tuesday Blitz December 20 Late 2022"]
[White "Sarkar, Justin"]
[Black "De Souza, Cristiano Gomes"]
[WhiteFideId "2010011"]
[BlackFideId "2151758"]
[WhiteElo "2239"]
[BlackElo "2068"]
[Result "0-1"]
[Round "09"]
[TimeControl "180+1"]
[Date "2022.12.21"]
[WhiteClock "0:00:02"]
[BlackClock "0:00:14"]

1. e4 {[%clk 0:02:48]}  c5 {[%clk 0:02:59]} 2. Nf3 {[%clk 0:02:46]}  d6 {[%clk 0:02:59]} 3. Bb5+ {[%clk 0:02:28]}  Bd7 {[%clk 0:02:59]} 4. c4 {[%clk 0:02:27]}  Bxb5 {[%clk 0:02:58]} 5. cxb5 {[%clk 0:02:28]}  g6 {[%clk 0:02:58]} 6. d4 {[%clk 0:02:25]}  Bg7 {[%clk 0:02:56]} 7. Nc3 {[%clk 0:02:17]}  Nd7 {[%clk 0:02:52]} 8. O-O {[%clk 0:02:12]}  cxd4 {[%clk 0:02:49]} 9. Nxd4 {[%clk 0:02:11]}  Ngf6 {[%clk 0:02:49]} 10. Be3 {[%clk 0:02:06]}  O-O {[%clk 0:02:48]} 11. Rc1 {[%clk 0:01:56]}  Nc5 {[%clk 0:02:47]} 12. f3 {[%clk 0:01:55]}  Rc8 {[%clk 0:02:43]} 13. b4 {[%clk 0:01:49]}  Ncd7 {[%clk 0:02:38]} 14. Qb3 {[%clk 0:01:33]}  Nb6 {[%clk 0:02:37]} 15. Rfd1 {[%clk 0:01:27]}  Nc4 {[%clk 0:02:28]} 16. Bf2 {[%clk 0:01:24]}  Bh6 {[%clk 0:02:28]} 17. Rc2 {[%clk 0:01:21]}  Be3 {[%clk 0:02:15]} 18. Nd5 {[%clk 0:01:00]}  Nxd5 {[%clk 0:02:14]} 19. Rxc4 {[%clk 0:00:54]}  Rxc4 {[%clk 0:02:08]} 20. Qxc4 {[%clk 0:00:53]}  Nb6 {[%clk 0:02:04]} 21. Qb3 {[%clk 0:00:44]}  Bxf2+ {[%clk 0:02:03]} 22. Kxf2 {[%clk 0:00:45]}  e5 {[%clk 0:01:50]} 23. Nc2 {[%clk 0:00:34]}  Qh4+ {[%clk 0:01:50]} 24. Kg1 {[%clk 0:00:34]}  Rc8 {[%clk 0:01:42]} 25. Ne3 {[%clk 0:00:28]}  Qe7 {[%clk 0:01:15]} 26. a4 {[%clk 0:00:27]}  Nd7 {[%clk 0:01:02]} 27. Nd5 {[%clk 0:00:23]}  Qe6 {[%clk 0:01:02]} 28. a5 {[%clk 0:00:20]}  Kg7 {[%clk 0:00:56]} 29. Qd3 {[%clk 0:00:19]}  Rd8 {[%clk 0:00:49]} 30. Ne3 {[%clk 0:00:18]}  Nf6 {[%clk 0:00:48]} 31. Qc3 {[%clk 0:00:14]}  Rc8 {[%clk 0:00:48]} 32. Qd2 {[%clk 0:00:13]}  Ne8 {[%clk 0:00:42]} 33. Nd5 {[%clk 0:00:12]}  Rd8 {[%clk 0:00:41]} 34. Rc1 {[%clk 0:00:12]}  Nf6 {[%clk 0:00:41]} 35. Rc7 {[%clk 0:00:09]}  Nxd5 {[%clk 0:00:40]} 36. exd5 {[%clk 0:00:09]}  Qf5 {[%clk 0:00:37]} 37. Rxb7 {[%clk 0:00:09]}  Qb1+ {[%clk 0:00:35]} 38. Kf2 {[%clk 0:00:09]}  Rc8 {[%clk 0:00:36]} 39. Kg3 {[%clk 0:00:06]}  Qf5 {[%clk 0:00:28]} 40. h4 {[%clk 0:00:05]}  Rc2 {[%clk 0:00:27]} 41. Qe3 {[%clk 0:00:05]}  Rc4 {[%clk 0:00:19]} 42. b6 {[%clk 0:00:03]}  axb6 {[%clk 0:00:19]} 43. axb6 {[%clk 0:00:03]}  Qf6 {[%clk 0:00:19]} 44. Kf2 {[%clk 0:00:02]}  Qxh4+ {[%clk 0:00:18]} 45. Ke2 {[%clk 0:00:02]}  Rc2+ {[%clk 0:00:17]} 46. Kd3 {[%clk 0:00:02]}  Qc4# {[%clk 0:00:14]} 0-1


[Site "https://www.chess.com"]

[Event "Titled Tuesday Blitz December 20 Late 2022"]
[White "Sjugirov, Sanan"]
[Black "Donchenko, Alexander"]
[WhiteFideId "4189302"]
[BlackFideId "24603295"]
[WhiteElo "2613"]
[BlackElo "2581"]
[Result "1-0"]
[Round "09"]
[TimeControl "180+1"]
[Date "2022.12.20"]
[WhiteClock "0:00:06"]
[BlackClock "0:00:04"]

1. d4 {[%clk 0:02:54]}  Nf6 {[%clk 0:02:43]} 2. c4 {[%clk 0:02:54]}  e6 {[%clk 0:02:43]} 3. Nf3 {[%clk 0:02:54]}  d5 {[%clk 0:02:43]} 4. Nc3 {[%clk 0:02:55]}  Bb4 {[%clk 0:02:42]} 5. Bg5 {[%clk 0:02:54]}  dxc4 {[%clk 0:02:41]} 6. e4 {[%clk 0:02:53]}  h6 {[%clk 0:02:41]} 7. Bxf6 {[%clk 0:02:53]}  Qxf6 {[%clk 0:02:42]} 8. Bxc4 {[%clk 0:02:52]}  c5 {[%clk 0:02:43]} 9. O-O {[%clk 0:02:51]}  cxd4 {[%clk 0:02:43]} 10. e5 {[%clk 0:02:50]}  Qd8 {[%clk 0:02:43]} 11. Ne4 {[%clk 0:02:49]}  O-O {[%clk 0:02:41]} 12. Qe2 {[%clk 0:02:49]}  Be7 {[%clk 0:02:39]} 13. Rad1 {[%clk 0:02:48]}  Qa5 {[%clk 0:02:34]} 14. a3 {[%clk 0:02:48]}  Rd8 {[%clk 0:02:30]} 15. Ng3 {[%clk 0:02:45]}  Nd7 {[%clk 0:02:26]} 16. Rfe1 {[%clk 0:02:33]}  Nf8 {[%clk 0:02:21]} 17. Qe4 {[%clk 0:02:25]}  Bd7 {[%clk 0:02:10]} 18. Bd3 {[%clk 0:02:18]}  Bb5 {[%clk 0:02:07]} 19. Qxb7 {[%clk 0:02:02]}  Bxd3 {[%clk 0:02:01]} 20. Rxd3 {[%clk 0:02:03]}  Ng6 {[%clk 0:01:47]} 21. b4 {[%clk 0:02:02]}  Qb6 {[%clk 0:01:42]} 22. Qxb6 {[%clk 0:01:57]}  axb6 {[%clk 0:01:43]} 23. Ne2 {[%clk 0:01:54]}  Rd5 {[%clk 0:01:29]} 24. Nexd4 {[%clk 0:01:33]}  Rad8 {[%clk 0:01:28]} 25. Re4 {[%clk 0:01:20]}  Bg5 {[%clk 0:01:19]} 26. g3 {[%clk 0:01:13]}  Bc1 {[%clk 0:01:13]} 27. Re2 {[%clk 0:00:48]}  Bf4 {[%clk 0:00:22]} 28. gxf4 {[%clk 0:00:30]}  Nxf4 {[%clk 0:00:23]} 29. Ree3 {[%clk 0:00:31]}  Nxd3 {[%clk 0:00:21]} 30. Rxd3 {[%clk 0:00:31]}  f6 {[%clk 0:00:22]} 31. Re3 {[%clk 0:00:26]}  Rxd4 {[%clk 0:00:14]} 32. Nxd4 {[%clk 0:00:27]}  Rxd4 {[%clk 0:00:15]} 33. exf6 {[%clk 0:00:28]}  Rd6 {[%clk 0:00:08]} 34. fxg7 {[%clk 0:00:24]}  b5 {[%clk 0:00:07]} 35. Re5 {[%clk 0:00:17]}  Rb6 {[%clk 0:00:07]} 36. Kg2 {[%clk 0:00:10]}  Kxg7 {[%clk 0:00:07]} 37. h4 {[%clk 0:00:10]}  Kf6 {[%clk 0:00:08]} 38. Rh5 {[%clk 0:00:09]}  Kg6 {[%clk 0:00:08]} 39. Rc5 {[%clk 0:00:10]}  Ra6 {[%clk 0:00:08]} 40. Rxb5 {[%clk 0:00:07]}  Rxa3 {[%clk 0:00:08]} 41. Rc5 {[%clk 0:00:06]}  Rb3 {[%clk 0:00:05]} 42. b5 {[%clk 0:00:06]}  Kf6 {[%clk 0:00:05]} 43. f3 {[%clk 0:00:05]}  h5 {[%clk 0:00:03]} 44. Rxh5 {[%clk 0:00:04]}  e5 {[%clk 0:00:03]} 45. Rh6+ {[%clk 0:00:01]}  Kf5 {[%clk 0:00:03]} 46. Rb6 {[%clk 0:00:02]}  Kf4 {[%clk 0:00:02]} 47. Rf6+ {[%clk 0:00:03]}  Ke3 {[%clk 0:00:02]} 48. b6 {[%clk 0:00:03]}  Rb2+ {[%clk 0:00:02]} 49. Kg3 {[%clk 0:00:04]}  Rb1 {[%clk 0:00:02]} 50. h5 {[%clk 0:00:04]}  Rg1+ {[%clk 0:00:02]} 51. Kh2 {[%clk 0:00:04]}  Rg5 {[%clk 0:00:01]} 52. h6 {[%clk 0:00:04]}  Kf2 {[%clk 0:00:01]} 53. Kh3 {[%clk 0:00:05]}  Rg3+ {[%clk 0:00:02]} 54. Kh4 {[%clk 0:00:05]}  Rg1 {[%clk 0:00:02]} 55. Kh5 {[%clk 0:00:05]}  Rh1+ {[%clk 0:00:03]} 56. Kg6 {[%clk 0:00:06]}  Rg1+ {[%clk 0:00:03]} 57. Kf7 {[%clk 0:00:06]}  Rb1 {[%clk 0:00:04]} 58. Kg7 {[%clk 0:00:06]} 1-0


[Site "https://www.chess.com"]

[Event "Titled Tuesday Blitz December 20 Late 2022"]
[White "Smith, Garrett L"]
[Black "Gomes, Luiz Alexandre de Souza"]
[WhiteFideId "2024829"]
[BlackFideId "2102790"]
[WhiteElo "2233"]
[BlackElo "2379"]
[Result "1-0"]
[Round "09"]
[TimeControl "180+1"]
[Date "2022.12.21"]
[WhiteClock "0:00:16"]
[BlackClock "0:00:01"]

1. e4 {[%clk 0:03:00]}  c5 {[%clk 0:02:59]} 2. a3 {[%clk 0:03:00]}  d6 {[%clk 0:02:58]} 3. Nc3 {[%clk 0:02:56]}  a6 {[%clk 0:02:57]} 4. g3 {[%clk 0:02:45]}  Nf6 {[%clk 0:02:57]} 5. Bg2 {[%clk 0:02:45]}  Nc6 {[%clk 0:02:57]} 6. d3 {[%clk 0:02:46]}  g6 {[%clk 0:02:57]} 7. Nge2 {[%clk 0:02:46]}  Bg7 {[%clk 0:02:57]} 8. O-O {[%clk 0:02:46]}  O-O {[%clk 0:02:58]} 9. Be3 {[%clk 0:02:45]}  Re8 {[%clk 0:02:58]} 10. h3 {[%clk 0:02:44]}  Rb8 {[%clk 0:02:58]} 11. Qd2 {[%clk 0:02:43]}  e6 {[%clk 0:02:58]} 12. Rab1 {[%clk 0:02:18]}  b5 {[%clk 0:02:57]} 13. b4 {[%clk 0:02:15]}  cxb4 {[%clk 0:02:56]} 14. axb4 {[%clk 0:02:15]}  Bb7 {[%clk 0:02:57]} 15. Rb3 {[%clk 0:02:13]}  Rc8 {[%clk 0:02:57]} 16. d4 {[%clk 0:02:12]}  Ne7 {[%clk 0:02:50]} 17. Bg5 {[%clk 0:02:06]}  Qc7 {[%clk 0:02:46]} 18. Ra1 {[%clk 0:01:59]}  d5 {[%clk 0:02:31]} 19. e5 {[%clk 0:01:55]}  Ne4 {[%clk 0:02:31]} 20. Nxe4 {[%clk 0:01:52]}  dxe4 {[%clk 0:02:32]} 21. Ra2 {[%clk 0:01:44]}  Nf5 {[%clk 0:02:06]} 22. g4 {[%clk 0:01:40]}  e3 {[%clk 0:01:52]} 23. Bxe3 {[%clk 0:01:33]}  Nxe3 {[%clk 0:01:52]} 24. Qxe3 {[%clk 0:01:30]}  Red8 {[%clk 0:01:48]} 25. Rc3 {[%clk 0:01:26]}  Qb8 {[%clk 0:01:42]} 26. Rc5 {[%clk 0:01:24]}  Bf8 {[%clk 0:01:40]} 27. Rxc8 {[%clk 0:01:23]}  Rxc8 {[%clk 0:01:39]} 28. c3 {[%clk 0:01:16]}  Be7 {[%clk 0:01:20]} 29. Ra3 {[%clk 0:01:15]}  Kg7 {[%clk 0:01:17]} 30. Ng3 {[%clk 0:01:15]}  h6 {[%clk 0:01:04]} 31. Ne4 {[%clk 0:01:05]}  Bxe4 {[%clk 0:00:57]} 32. Bxe4 {[%clk 0:01:00]}  Qc7 {[%clk 0:00:56]} 33. Kg2 {[%clk 0:00:49]}  Qc4 {[%clk 0:00:48]} 34. Rxa6 {[%clk 0:00:37]}  Qxc3 {[%clk 0:00:48]} 35. Qxc3 {[%clk 0:00:38]}  Rxc3 {[%clk 0:00:48]} 36. Rb6 {[%clk 0:00:39]}  Bxb4 {[%clk 0:00:48]} 37. Rxb5 {[%clk 0:00:39]}  Be7 {[%clk 0:00:47]} 38. Rb7 {[%clk 0:00:39]}  Bh4 {[%clk 0:00:46]} 39. d5 {[%clk 0:00:38]}  Rc4 {[%clk 0:00:44]} 40. Kf3 {[%clk 0:00:31]}  exd5 {[%clk 0:00:36]} 41. Rxf7+ {[%clk 0:00:26]}  Kxf7 {[%clk 0:00:30]} 42. Bxd5+ {[%clk 0:00:27]}  Ke7 {[%clk 0:00:31]} 43. Bxc4 {[%clk 0:00:28]}  Bg5 {[%clk 0:00:23]} 44. Ke4 {[%clk 0:00:27]}  Bc1 {[%clk 0:00:12]} 45. f4 {[%clk 0:00:28]}  Bb2 {[%clk 0:00:09]} 46. Bg8 {[%clk 0:00:28]}  Bc3 {[%clk 0:00:08]} 47. f5 {[%clk 0:00:22]}  gxf5+ {[%clk 0:00:08]} 48. gxf5 {[%clk 0:00:23]}  Bb2 {[%clk 0:00:08]} 49. Bc4 {[%clk 0:00:21]}  Bc3 {[%clk 0:00:07]} 50. f6+ {[%clk 0:00:20]}  Kd7 {[%clk 0:00:04]} 51. Kf5 {[%clk 0:00:20]}  Bb2 {[%clk 0:00:01]} 52. e6+ {[%clk 0:00:20]}  Kd6 {[%clk 0:00:01]} 53. e7 {[%clk 0:00:16]} 1-0


[Site "https://www.chess.com"]

[Event "Titled Tuesday Blitz December 20 Late 2022"]
[White "Sokolovsky, Yahli"]
[Black "Delorme, Axel"]
[WhiteFideId "2820242"]
[BlackFideId "632023"]
[WhiteElo "2638"]
[BlackElo "2440"]
[Result "0-1"]
[Round "09"]
[TimeControl "180+1"]
[Date "2022.12.21"]
[WhiteClock "0:00:09"]
[BlackClock "0:00:09"]

1. b3 {[%clk 0:03:00]}  e5 {[%clk 0:02:56]} 2. Bb2 {[%clk 0:03:01]}  Nc6 {[%clk 0:02:57]} 3. e3 {[%clk 0:03:00]}  d5 {[%clk 0:02:57]} 4. Nf3 {[%clk 0:02:58]}  Bd6 {[%clk 0:02:54]} 5. c4 {[%clk 0:02:58]}  Nge7 {[%clk 0:02:42]} 6. Nc3 {[%clk 0:02:49]}  dxc4 {[%clk 0:02:39]} 7. Bxc4 {[%clk 0:02:50]}  O-O {[%clk 0:02:38]} 8. O-O {[%clk 0:02:50]}  Bg4 {[%clk 0:02:08]} 9. Ne4 {[%clk 0:02:38]}  Kh8 {[%clk 0:01:52]} 10. Neg5 {[%clk 0:02:26]}  Qe8 {[%clk 0:01:49]} 11. Qb1 {[%clk 0:02:03]}  f5 {[%clk 0:01:33]} 12. h3 {[%clk 0:01:44]}  Bh5 {[%clk 0:01:29]} 13. Ne6 {[%clk 0:01:45]}  Rf6 {[%clk 0:01:24]} 14. Nh2 {[%clk 0:01:43]}  Na5 {[%clk 0:01:16]} 15. Ng5 {[%clk 0:01:37]}  Nxc4 {[%clk 0:01:15]} 16. bxc4 {[%clk 0:01:36]}  Rg6 {[%clk 0:01:16]} 17. Ngf3 {[%clk 0:01:00]}  Qc6 {[%clk 0:00:58]} 18. Rc1 {[%clk 0:00:40]}  Bxf3 {[%clk 0:00:57]} 19. g3 {[%clk 0:00:40]}  f4 {[%clk 0:00:44]} 20. exf4 {[%clk 0:00:31]}  exf4 {[%clk 0:00:34]} 21. g4 {[%clk 0:00:28]}  Be4 {[%clk 0:00:32]} 22. d3 {[%clk 0:00:26]}  Bh1 {[%clk 0:00:32]} 23. f3 {[%clk 0:00:19]}  Bxf3 {[%clk 0:00:32]} 24. c5 {[%clk 0:00:20]}  Bh1 {[%clk 0:00:25]} 25. Rc2 {[%clk 0:00:09]}  Bxc5+ {[%clk 0:00:23]} 26. d4 {[%clk 0:00:09]}  Rf8 {[%clk 0:00:09]} 27. Rxc5 {[%clk 0:00:09]}  Qg2# {[%clk 0:00:09]} 0-1


[Site "https://www.chess.com"]